bitfinex/quotes_SOLUSD_20241115
["timestamp","ask_amount","ask_price","bid_price","bid_amount"]
[1731662575330,11.52768529,212.36,212.3,11.7757]
[1731662575510,11.52768529,212.35,212.3,11.7757]
[1731662575707,4.7085,212.38,212.3,11.7757]
[1731662575913,11.52768529,212.36,212.3,16.486]
[1731662578225,16.23648529,212.37,212.3,23.30338529]
[1731662578610,11.52768529,212.39,212.33,11.52768529]
[1731662578806,4.708,212.41,212.35,11.52768529]
[1731662579599,4.708,212.41,212.36,11.52768529]
[1731662580017,4.7075,212.43,212.38,11.52768529]
[1731662580323,158.32106065,212.46,212.29,11.62768529]
[1731662580324,11.52768529,212.46,212.39,11.52768529]
[1731662580926,16.23418529,212.47,212.4,11.52768529]
[1731662581108,11.52768529,212.46,212.39,11.52768529]
[1731662581610,11.52768529,212.45,212.38,11.52768529]
[1731662582124,4.7072,212.44,212.38,11.52768529]
[1731662582424,11.52768529,212.41,212.35,11.773]
[1731662582722,11.52768529,212.41,212.34,11.52768529]
[1731662583233,11.52768529,212.4,212.33,11.52768529]
[1731662583528,11.52768529,212.39,212.33,11.52768529]
[1731662583737,11.52768529,212.41,212.34,16.23708529]
[1731662584227,11.52768529,212.41,212.34,4.7094]
[1731662584525,11.52768529,212.4,212.34,4.7094]
[1731662585118,11.52768529,212.38,212.32,16.4842]
[1731662585439,11.52768529,212.4,212.33,11.52768529]
[1731662585908,11.65317529,212.41,212.34,11.52768529]
[1731662586307,11.52768529,212.43,212.37,11.52768529]
[1731662586512,4.7074,212.44,212.38,11.52768529]
[1731662587107,16.23508529,212.44,212.34,16.4827]
[1731662587314,11.52768529,212.43,212.36,11.52768529]
[1731662587527,11.52768529,212.43,212.36,16.23658529]
[1731662587827,16.23508529,212.44,212.37,11.52768529]
[1731662588331,11.52768529,212.43,212.36,16.23658529]
[1731662588510,4.7074,212.43,212.37,11.52768529]
[1731662590017,11.52768529,212.46,212.39,11.52768529]
[1731662590339,11.52768529,212.45,212.38,11.52768529]
[1731662591416,11.65317529,212.46,212.39,16.23578529]
[1731662591617,16.23388529,212.49,212.42,11.52768529]
[1731662592135,11.52768529,212.48,212.41,11.52768529]
[1731662592436,4.7062,212.49,212.35,21.6083]
[1731662592437,11.52768529,212.42,212.35,33.3811]
[1731662592632,11.52768529,212.39,212.35,15.5853]
[1731662592932,11.52768529,212.39,212.32,16.23748529]
[1731662593523,16.23578529,212.4,212.33,11.52768529]
[1731662593909,16.23558529,212.41,212.34,11.52768529]
[1731662594242,11.52768529,212.43,212.36,11.52768529]
[1731662595030,11.52768529,212.44,212.37,11.52768529]
[1731662595214,16.23498529,212.44,212.38,11.52768529]
[1731662595424,16.23498529,212.44,212.37,11.52768529]
[1731662595818,11.52768529,212.4,212.34,11.52768529]
[1731662597125,11.52768529,212.44,212.37,11.52768529]
[1731662597430,11.52768529,212.42,212.35,11.52768529]
[1731662598217,11.52768529,212.36,212.31,16.4851]
[1731662598617,11.52768529,212.32,212.25,16.3745]
[1731662598942,28.00448529,212.42,212.19,4.7127]
[1731662598943,43.963124,212.34,212.19,4.7127]
[1731662599111,202.28418465,212.34,212.19,4.7127]
[1731662599315,23.902374,212.29,212.19,4.7127]
[1731662599523,11.52768529,212.25,212.19,4.7127]
[1731662599727,11.52768529,212.22,212.18,6.2764]
[1731662599933,11.52768529,212.22,212.16,23.31088529]
[1731662600133,11.52768529,212.23,212.17,11.52768529]
[1731662600527,11.52768529,212.24,212.17,11.52768529]
[1731662600735,11.52768529,212.24,212.18,11.52768529]
[1731662600935,16.23838529,212.28,212.21,11.52768529]
[1731662601253,16.23838529,212.28,212.16,16.4966]
[1731662601254,30.0,212.22,212.2,4.7123]
[1731662602436,11.52768529,212.26,212.2,4.7123]
[1731662602638,11.52768529,212.29,212.22,11.52768529]
[1731662602827,11.52768529,212.3,212.23,11.52768529]
[1731662603342,11.52768529,212.31,212.24,11.52768529]
[1731662603547,35.30456929,212.33,212.26,11.52768529]
[1731662603735,20.0,212.32,212.26,11.52768529]
[1731662604126,11.52768529,212.33,212.26,11.52768529]
[1731662604732,11.52768529,212.32,212.25,16.23898529]
[1731662605839,16.36287529,212.33,212.26,11.52768529]
[1731662606142,16.36287529,212.33,212.18,16.4953]
[1731662606143,11.52768529,212.36,212.29,11.52768529]
[1731662606341,11.52768529,212.37,212.31,11.52768529]
[1731662606525,11.52768529,212.36,212.29,11.52768529]
[1731662606926,11.52768529,212.35,212.29,11.52768529]
[1731662607442,11.52768529,212.37,212.3,11.52768529]
[1731662607744,23.902374,212.41,212.34,11.52768529]
[1731662607745,11.52768529,212.41,212.34,11.52768529]
[1731662607952,11.52768529,212.37,212.3,11.52768529]
[1731662608741,0.12549,212.41,212.29,11.7763]
[1731662608937,0.12549,212.41,212.29,23.30398529]
[1731662608938,11.52768529,212.36,212.29,23.30398529]
[1731662609335,27.27160454,212.42,212.29,23.30398529]
[1731662609336,7.32900454,212.42,212.33,11.52768529]
[1731662609644,11.52768529,212.42,212.35,11.52768529]
[1731662609823,11.52768529,212.4,212.33,11.52768529]
[1731662610025,11.52768529,212.41,212.34,11.52768529]
[1731662610230,11.52768529,212.4,212.33,11.52768529]
[1731662610833,11.52768529,212.4,212.33,16.23708529]
[1731662611031,11.52768529,212.41,212.33,16.23708529]
[1731662611738,11.52768529,212.41,212.34,11.52768529]
[1731662611936,11.52768529,212.41,212.33,28.01118529]
[1731662613356,11.52768529,212.41,212.34,11.52768529]
[1731662614057,4.7073,212.44,212.38,11.52768529]
[1731662614232,4.7073,212.44,212.37,11.52768529]
[1731662614572,16.23498529,212.44,212.37,11.52768529]
[1731662615856,11.52768529,212.43,212.36,16.23658529]
[1731662616052,11.52768529,212.42,212.36,4.7089]
[1731662616273,4.7073,212.44,212.36,11.52768529]
[1731662616470,7.33414146,212.49,212.43,11.52768529]
[1731662616673,11.52768529,212.51,212.44,11.52768529]
[1731662616892,11.52768529,212.49,212.42,11.52768529]
[1731662617269,11.52768529,212.49,212.41,11.52768529]
[1731662617767,11.52768529,212.49,212.41,16.23528529]
[1731662617949,11.52768529,212.49,212.42,11.52768529]
[1731662618348,11.52768529,212.46,212.39,11.52768529]
[1731662618564,11.52768529,212.43,212.37,26.4944]
[1731662618854,11.52768529,212.43,212.37,38.2663]
[1731662619364,11.52768529,212.44,212.37,49.79398529]
[1731662619743,11.52768529,212.43,212.37,38.2663]
[1731662620671,4.7058,212.51,212.41,11.52768529]
[1731662620914,4.7058,212.51,212.42,11.52768529]
[1731662621064,11.52768529,212.48,212.41,11.52768529]
[1731662621256,11.52768529,212.45,212.37,38.2663]
[1731662621456,11.52768529,212.45,212.38,11.52768529]
[1731662621762,4.7058,212.51,212.4,11.52768529]
[1731662621955,11.52768529,212.47,212.4,11.52768529]
[1731662622160,4.7058,212.51,212.37,38.2663]
[1731662622161,11.52768529,212.46,212.38,11.52768529]
[1731662622367,11.52768529,212.46,212.39,16.23598529]
[1731662622877,0.12549,212.5,212.39,16.23598529]
[1731662622878,11.52768529,212.52,212.45,11.52768529]
[1731662623086,4.7055,212.52,212.45,11.52768529]
[1731662623452,16.23318529,212.52,212.45,11.52768529]
[1731662624161,24.7057,212.51,212.45,11.52768529]
[1731662624593,16.23338529,212.51,212.45,11.52768529]
[1731662624760,16.23298529,212.53,212.46,11.52768529]
[1731662625078,11.52768529,212.52,212.45,11.52768529]
[1731662625283,4.7053,212.53,212.48,11.52768529]
[1731662625458,173.36226065,212.6,212.49,11.52768529]
[1731662625773,11.52768529,212.52,212.46,22.3815]
[1731662625955,16.58899,212.59,212.46,22.3815]
[1731662626151,16.68899,212.59,212.46,22.3815]
[1731662627190,11.52768529,212.52,212.46,22.3815]
[1731662627555,11.52768529,212.53,212.46,22.3815]
[1731662627766,11.52768529,212.52,212.46,22.3815]
[1731662628669,4.7056,212.51,212.46,22.3815]
[1731662629168,4.7056,212.51,212.46,33.90918529]
[1731662629572,4.7056,212.51,212.46,22.3815]
[1731662629977,11.52768529,212.55,212.47,11.52768529]
[1731662630187,4.7045,212.56,212.5,11.52768529]
[1731662630566,4.7045,212.56,212.46,38.855]
[1731662630567,11.52768529,212.52,212.46,22.3815]
[1731662630881,0.12549,212.55,212.46,22.3815]
[1731662631585,11.52768529,212.51,212.46,22.3815]
[1731662632368,4.7058,212.5,212.46,22.3815]
[1731662632762,11.52768529,212.52,212.46,22.3815]
[1731662632763,16.23328529,212.52,212.46,22.3815]
[1731662633277,11.52768529,212.51,212.46,22.3815]
[1731662633454,7.32195426,212.6,212.49,11.52768529]
[1731662633657,173.47906065,212.65,212.46,22.3815]
[1731662633658,0.456577,212.63,212.48,23.902374]
[1731662633984,5.159677,212.63,212.57,11.52768529]
[1731662634357,16.68736229,212.63,212.56,11.52768529]
[1731662634558,11.52768529,212.61,212.54,11.52768529]
[1731662634759,18.42217718,212.59,212.52,18.42217718]
[1731662634964,0.12549,212.62,212.48,18.42217718]
[1731662635161,20.12549,212.62,212.46,22.3815]
[1731662635387,0.456577,212.63,212.5,0.2]
[1731662635572,0.456577,212.63,212.52,6.2128]
[1731662635767,0.456577,212.63,212.53,1.04052543]
[1731662635979,0.456577,212.63,212.54,0.1]
[1731662636459,0.456577,212.63,212.59,18.42217718]
[1731662636662,0.456577,212.63,212.52,6.2128]
[1731662636889,18.42217718,212.62,212.55,18.42217718]
[1731662637261,18.42217718,212.62,212.56,18.42217718]
[1731662637464,5.159677,212.63,212.52,6.2128]
[1731662637687,5.159677,212.63,212.53,18.42217718]
[1731662637688,18.42217718,212.6,212.53,18.42217718]
[1731662637900,5.159677,212.63,212.52,6.2128]
[1731662638190,18.42217718,212.59,212.52,24.63497718]
[1731662638499,18.42217718,212.6,212.53,18.42217718]
[1731662638662,18.42217718,212.56,212.52,6.2128]
[1731662638989,18.42217718,212.55,212.51,16.64]
[1731662639374,18.42217718,212.55,212.48,18.42217718]
[1731662639609,18.42217718,212.54,212.47,24.42687718]
[1731662639885,18.42217718,212.52,212.47,6.0047]
[1731662640072,18.42217718,212.53,212.47,6.0047]
[1731662640686,23.12727718,212.54,212.47,24.42687718]
[1731662640992,18.42217718,212.53,212.47,6.0047]
[1731662641684,18.42217718,212.52,212.47,6.0047]
[1731662642070,18.42217718,212.53,212.47,6.0047]
[1731662642987,18.42217718,212.58,212.51,18.42217718]
[1731662643297,18.42217718,212.59,212.51,18.42217718]
[1731662643999,23.12567718,212.61,212.54,18.42217718]
[1731662644168,18.42217718,212.62,212.54,18.42217718]
[1731662644377,5.159677,212.63,212.54,18.42217718]
[1731662644378,18.42217718,212.61,212.54,18.42217718]
[1731662644585,18.42217718,212.62,212.54,18.42217718]
[1731662645191,0.456577,212.63,212.61,18.42217718]
[1731662645392,0.456577,212.63,212.59,18.42217718]
[1731662646189,0.456577,212.63,212.61,18.42217718]
[1731662646695,0.456577,212.63,212.62,18.42217718]
[1731662646987,0.456577,212.63,212.62,24.71627718]
[1731662649782,0.456577,212.63,212.62,6.2941]
[1731662649986,0.456577,212.63,212.58,30.18237718]
[1731662650297,0.456577,212.63,212.58,18.42217718]
[1731662650598,0.456577,212.63,212.57,15.9282]
[1731662650599,0.456577,212.63,212.59,18.42217718]
[1731662650767,4.7032,212.62,212.59,18.42217718]
[1731662650971,18.42217718,212.62,212.57,15.9282]
[1731662651182,18.87875418,212.63,212.57,15.9282]
[1731662651396,18.42217718,212.62,212.57,15.9282]
[1731662651601,18.87875418,212.63,212.57,15.9282]
[1731662651774,18.87875418,212.63,212.48,0.1]
[1731662651775,18.42217718,212.59,212.52,33.71937718]
[1731662651970,18.42217718,212.57,212.52,15.2972]
[1731662652184,4.7032,212.62,212.52,33.71937718]
[1731662652185,18.42217718,212.59,212.52,33.71937718]
[1731662652383,18.42217718,212.58,212.52,15.2972]
[1731662652597,18.42217718,212.57,212.52,15.2972]
[1731662652770,18.42217718,212.58,212.52,15.2972]
[1731662652976,18.42217718,212.57,212.52,15.2972]
[1731662653491,18.42217718,212.58,212.52,15.2972]
[1731662653707,18.42217718,212.6,212.53,18.42217718]
[1731662653877,18.42217718,212.6,212.52,50.18817718]
[1731662654197,0.456577,212.63,212.58,18.42217718]
[1731662654574,23.58185418,212.63,212.56,18.42217718]
[1731662654786,5.159677,212.63,212.57,18.42217718]
[1731662655100,0.456577,212.63,212.58,18.42217718]
[1731662655296,0.456577,212.63,212.6,18.42217718]
[1731662655880,0.456577,212.63,212.59,18.42217718]
[1731662656085,0.456577,212.63,212.58,18.42217718]
[1731662657479,0.456577,212.63,212.61,18.42217718]
[1731662657988,0.456577,212.63,212.6,18.42217718]
[1731662658177,0.456577,212.63,212.59,18.42217718]
[1731662658380,0.456577,212.63,212.58,30.18237718]
[1731662658586,0.456577,212.63,212.59,18.42217718]
[1731662659592,0.456577,212.63,212.62,18.42217718]
[1731662660181,0.456577,212.63,212.6,18.42217718]
[1731662660902,0.456577,212.63,212.59,34.88567718]
[1731662661683,0.456577,212.63,212.6,18.42217718]
[1731662661888,0.456577,212.63,212.62,18.42217718]
[1731662662204,0.456577,212.63,212.61,18.42217718]
[1731662662382,0.456577,212.63,212.59,24.85537718]
[1731662662582,0.456577,212.63,212.6,18.42217718]
[1731662662782,0.456577,212.63,212.61,18.42217718]
[1731662662988,0.456577,212.63,212.62,18.42217718]
[1731662663500,0.456577,212.63,212.61,18.42217718]
[1731662663799,0.456577,212.63,212.6,4.7036]
[1731662664129,0.456577,212.63,212.62,18.42217718]
[1731662665585,0.456577,212.63,212.62,23.12537718]
[1731662667290,5.4993,212.8,212.72,18.42217718]
[1731662667603,5.4993,212.8,212.74,18.42217718]
[1731662667795,23.92147718,212.8,212.73,18.42217718]
[1731662668496,23.92147718,212.8,212.72,18.42217718]
[1731662668699,5.4993,212.8,212.74,18.42217718]
[1731662669092,5.4993,212.8,212.71,11.7528]
[1731662669093,5.4993,212.8,212.73,18.42217718]
[1731662669288,0.8,212.8,212.75,18.42217718]
[1731662669908,19.22217718,212.8,212.72,18.42217718]
[1731662670092,23.92147718,212.8,212.72,18.42217718]
[1731662670405,18.42217718,212.79,212.72,18.42217718]
[1731662670592,18.42217718,212.78,212.71,30.17497718]
[1731662670789,23.12207718,212.77,212.69,18.42217718]
[1731662670992,18.42217718,212.76,212.68,18.42217718]
[1731662671515,18.42217718,212.75,212.67,18.42217718]
[1731662671807,18.42217718,212.75,212.67,23.12417718]
[1731662671981,18.42217718,212.76,212.68,18.42217718]
[1731662672711,18.42217718,212.75,212.67,34.87947718]
[1731662672890,18.42217718,212.73,212.67,16.4573]
[1731662673103,18.42217718,212.73,212.67,11.7553]
[1731662673690,18.42217718,212.72,212.64,18.42217718]
[1731662673890,18.42217718,212.7,212.62,34.88277718]
[1731662674208,18.42217718,212.71,212.64,18.42217718]
[1731662674585,18.56517718,212.73,212.65,18.42217718]
[1731662675007,0.143,212.73,212.71,18.42217718]
[1731662675214,0.143,212.73,212.72,18.42217718]
[1731662676513,0.143,212.73,212.72,23.12317718]
[1731662676714,0.143,212.73,212.72,4.701]
[1731662677091,0.143,212.73,212.72,23.12317718]
[1731662679197,0.143,212.73,212.71,30.17517718]
[1731662679403,0.143,212.73,212.71,34.87637718]
[1731662682202,0.143,212.73,212.72,18.42217718]
[1731662683404,0.143,212.73,212.72,42.19906118]
[1731662686710,0.8,212.8,212.76,0.1]
[1731662686904,0.8,212.8,212.79,18.42217718]
[1731662687106,0.456577,212.84,212.82,23.776884]
[1731662687315,0.456577,212.84,212.83,18.42217718]
[1731662687623,0.456577,212.84,212.83,42.19906118]
[1731662688124,0.456577,212.84,212.83,18.42217718]
[1731662689213,0.456577,212.84,212.83,23.12067718]
[1731662694518,0.456577,212.84,212.83,4.6985]
[1731662694916,0.456577,212.84,212.83,23.12067718]
[1731662695535,6.3327,212.98,212.83,23.12067718]
[1731662695536,0.456577,213.05,212.9,0.1]
[1731662695834,0.456577,213.05,212.95,18.42217718]
[1731662695835,18.42217718,213.04,212.95,18.42217718]
[1731662696436,18.42217718,213.04,212.9,23.776884]
[1731662696437,0.456577,213.05,212.97,18.42217718]
[1731662696639,18.87875418,213.05,212.95,18.42217718]
[1731662696837,18.87875418,213.05,212.93,18.42217718]
[1731662696838,18.42217718,213.01,212.93,18.42217718]
[1731662697039,18.42217718,212.97,212.89,24.49317718]
[1731662697245,18.42217718,212.97,212.89,18.42217718]
[1731662697544,18.42217718,212.99,212.91,18.42217718]
[1731662697911,18.42217718,212.97,212.9,11.7426]
[1731662698138,0.12549,213.03,212.9,11.7426]
[1731662698139,18.42217718,212.95,212.9,11.7426]
[1731662698436,18.42217718,212.95,212.88,4.6973]
[1731662698932,18.42217718,212.95,212.88,16.441]
[1731662699309,0.06075,213.02,212.89,18.42217718]
[1731662699516,18.42217718,212.97,212.9,4.697]
[1731662699709,18.42217718,212.97,212.9,16.4396]
[1731662700229,18.42217718,212.95,212.9,16.4396]
[1731662700437,18.42217718,212.95,212.9,11.7426]
[1731662701014,0.12549,213.0,212.85,11.7451]
[1731662701015,18.42217718,212.91,212.85,11.7451]
[1731662701426,18.42217718,212.92,212.85,30.16727718]
[1731662701627,18.42217718,212.92,212.85,34.86537718]
[1731662702016,30.13115926,213.08,212.92,0.1]
[1731662702227,30.13115926,213.08,213.01,18.42217718]
[1731662702432,22.77829081,213.08,213.01,18.42217718]
[1731662702646,41.20046799,213.08,212.99,18.42217718]
[1731662702816,18.42217718,213.06,212.97,18.42217718]
[1731662703013,18.42217718,213.02,212.95,18.42217718]
[1731662703618,18.42217718,213.06,212.97,18.42217718]
[1731662703944,18.42217718,213.06,212.99,18.42217718]
[1731662704613,18.42217718,213.06,213.0,4.6948]
[1731662704946,18.42217718,213.04,213.0,4.6948]
[1731662705449,18.42217718,213.02,212.98,4.6951]
[1731662705732,18.42217718,213.0,212.96,16.4348]
[1731662705941,18.42217718,212.98,212.96,11.7392]
[1731662706328,18.42217718,213.01,212.96,11.7392]
[1731662707031,18.42217718,212.99,212.96,11.7392]
[1731662707234,18.42217718,212.97,212.91,11.7418]
[1731662707536,18.42217718,212.97,212.92,4.6964]
[1731662707834,0.456577,213.05,212.95,18.42217718]
[1731662708141,0.456577,213.05,213.0,18.42217718]
[1731662708835,0.456577,213.05,213.01,4.6946]
[1731662709334,0.456577,213.05,213.01,16.4311]
[1731662710731,0.456577,213.05,213.01,34.85327718]
[1731662710916,0.456577,213.05,213.02,18.42217718]
[1731662711246,0.456577,213.05,213.04,18.42217718]
[1731662712235,0.456577,213.05,213.03,18.42217718]
[1731662712447,0.456577,213.05,213.04,18.42217718]
[1731662712928,0.456577,213.05,213.02,18.42217718]
[1731662713132,0.456577,213.05,213.03,18.42217718]
[1731662713340,0.456577,213.05,213.04,18.42217718]
[1731662714416,0.456577,213.05,213.01,11.7365]
[1731662714617,0.456577,213.05,213.04,18.42217718]
[1731662715218,0.456577,213.05,213.04,23.11607718]
[1731662717948,0.456577,213.05,213.04,23.21607718]
[1731662717949,0.17196891,213.05,213.04,23.21607718]
[1731662718447,6.891e-05,213.05,213.04,47.11845118]
[1731662718745,10.48616677,213.25,213.04,47.11845118]
[1731662718746,0.456577,213.26,213.09,0.1]
[1731662718928,18.87875418,213.26,213.19,18.42217718]
[1731662719130,18.87875418,213.26,213.08,23.776884]
[1731662719131,25.7688698,213.25,213.18,18.42217718]
[1731662719332,18.42217718,213.24,213.16,18.42217718]
[1731662720232,18.42217718,213.24,213.17,18.42217718]
[1731662720834,18.42217718,213.24,213.17,4.691]
[1731662721237,25.7688698,213.25,213.18,18.42217718]
[1731662721839,7.34669262,213.25,213.19,18.42217718]
[1731662722171,7.34669262,213.25,213.21,18.42217718]
[1731662722558,7.34669262,213.25,213.2,18.42217718]
[1731662722721,7.34669262,213.25,213.23,18.42217718]
[1731662722927,7.34669262,213.25,213.21,18.42217718]
[1731662723130,7.34669262,213.25,213.23,18.42217718]
[1731662723330,7.34669262,213.25,213.24,18.42217718]
[1731662724126,7.34669262,213.25,213.23,18.42217718]
[1731662724444,0.456577,213.26,213.24,18.42217718]
[1731662724640,0.456577,213.26,213.22,18.42217718]
[1731662724835,0.456577,213.26,213.24,18.42217718]
[1731662725028,0.456577,213.26,213.23,18.42217718]
[1731662725229,0.456577,213.26,213.2,30.14817718]
[1731662725638,0.456577,213.26,213.24,18.42217718]
[1731662725932,0.456577,213.26,213.21,18.42217718]
[1731662726136,18.42217718,213.25,213.2,11.726]
[1731662726351,0.456577,213.26,213.2,11.726]
[1731662726950,0.456577,213.26,213.14,16.421]
[1731662727532,18.42217718,213.22,213.15,18.42217718]
[1731662727830,18.42217718,213.21,213.14,34.84317718]
[1731662728032,18.42217718,213.2,213.14,16.421]
[1731662728347,18.42217718,213.21,213.14,34.84317718]
[1731662728540,18.42217718,213.2,213.14,16.421]
[1731662728735,18.42217718,213.19,213.11,41.88397718]
[1731662728950,18.42217718,213.18,213.11,18.42217718]
[1731662729155,18.42217718,213.18,213.09,16.4249]
[1731662729156,18.42217718,213.16,213.09,34.84707718]
[1731662729674,18.42217718,213.17,213.1,18.42217718]
[1731662729960,18.42217718,213.18,213.11,18.42217718]
[1731662730767,18.42217718,213.18,213.11,23.11437718]
[1731662731272,18.42217718,213.19,213.12,18.42217718]
[1731662731432,21.72465,213.24,213.16,18.42217718]
[1731662731433,18.42217718,213.23,213.16,18.42217718]
[1731662731751,0.456577,213.26,213.13,6.2174]
[1731662731959,5.145677,213.26,213.13,6.2174]
[1731662732269,0.12549,213.25,213.13,18.42217718]
[1731662732470,18.42217718,213.19,213.11,16.4232]
[1731662732760,18.42217718,213.2,213.13,18.42217718]
[1731662732970,0.12549,213.25,213.14,23.11387718]
[1731662732971,18.42217718,213.21,213.14,23.11387718]
[1731662733130,18.42217718,213.24,213.17,18.42217718]
[1731662733458,18.42217718,213.25,213.18,18.42217718]
[1731662733956,0.456577,213.26,213.2,18.42217718]
[1731662734951,0.456577,213.26,213.22,18.42217718]
[1731662735151,0.456577,213.26,213.25,18.42217718]
[1731662735537,0.456577,213.26,213.2,39.8683]
[1731662735734,0.456577,213.26,213.21,18.42217718]
[1731662736451,0.456577,213.26,213.23,18.42217718]
[1731662736650,0.456577,213.26,213.25,18.42217718]
[1731662736959,0.456577,213.26,213.2,39.8683]
[1731662736960,0.456577,213.26,213.24,18.42217718]
[1731662737196,0.456577,213.26,213.25,18.42217718]
[1731662738947,0.456577,213.26,213.25,4.6893]
[1731662739146,0.456577,213.26,213.25,23.11147718]
[1731662740639,0.456577,213.26,213.21,23.11237718]
[1731662740965,18.42217718,213.25,213.18,18.42217718]
[1731662741164,0.456577,213.26,213.19,18.42217718]
[1731662741369,0.456577,213.26,213.25,18.42217718]
[1731662742957,0.456577,213.26,213.25,23.11147718]
[1731662744944,0.17214716,213.26,213.25,23.11147718]
[1731662745962,0.26409036,213.37,213.28,0.1]
[1731662746162,0.26409036,213.37,213.36,23.10907718]
[1731662746376,0.26409036,213.37,213.36,4.6869]
[1731662746869,0.26409036,213.37,213.35,11.7177]
[1731662747073,0.26409036,213.37,213.35,16.4048]
[1731662747869,0.26409036,213.37,213.26,23.776884]
[1731662747870,18.42217718,213.36,213.3,11.7203]
[1731662748091,18.42217718,213.35,213.3,11.7203]
[1731662749170,18.42217718,213.36,213.3,11.7203]
[1731662749368,0.26409036,213.37,213.31,18.42217718]
[1731662749584,18.42217718,213.35,213.3,11.7203]
[1731662749797,18.42217718,213.34,213.3,11.7203]
[1731662749969,18.42217718,213.35,213.3,11.7203]
[1731662750363,40.18537718,213.36,213.3,11.7203]
[1731662750566,21.7632,213.36,213.3,30.14247718]
[1731662751088,18.68626754,213.37,213.3,30.14247718]
[1731662751089,0.26409036,213.37,213.35,18.42217718]
[1731662751253,0.26409036,213.37,213.36,18.42217718]
[1731662751461,0.26409036,213.37,213.3,11.7203]
[1731662751674,0.26409036,213.37,213.32,18.42217718]
[1731662751860,0.26409036,213.37,213.33,18.42217718]
[1731662752063,0.26409036,213.37,213.36,18.42217718]
[1731662752263,0.26409036,213.37,213.36,23.10907718]
[1731662754873,0.26409036,213.37,213.36,4.6869]
[1731662755076,0.26409036,213.37,213.36,23.10907718]
[1731662755460,0.26409036,213.37,213.36,18.42217718]
[1731662755665,0.26409036,213.37,213.35,34.82677718]
[1731662756175,0.26409036,213.37,213.36,18.42217718]
[1731662756366,0.26409036,213.37,213.35,34.82677718]
[1731662756566,0.26409036,213.37,213.36,18.42217718]
[1731662760877,0.26409036,213.37,213.35,16.4046]
[1731662761085,0.26409036,213.37,213.36,18.42217718]
[1731662762165,0.26409036,213.37,213.33,18.42217718]
[1731662762372,0.26409036,213.37,213.31,18.42217718]
[1731662762797,0.26409036,213.37,213.32,18.42217718]
[1731662762985,0.26409036,213.37,213.3,16.4083]
[1731662763287,0.26409036,213.37,213.3,11.7201]
[1731662763678,0.26409036,213.37,213.31,0.12549]
[1731662763879,0.26409036,213.37,213.36,18.42217718]
[1731662765392,0.26409036,213.37,213.36,23.10907718]
[1731662765974,0.456577,213.48,213.36,63.37785118]
[1731662766174,0.456577,213.48,213.47,18.42217718]
[1731662766390,0.456577,213.48,213.45,18.42217718]
[1731662766577,0.456577,213.48,213.47,18.42217718]
[1731662767492,0.456577,213.48,213.47,23.10657718]
[1731662769287,15.9411,213.47,213.34,4.6873]
[1731662769506,15.9411,213.47,213.4,18.42217718]
[1731662769795,0.456577,213.48,213.45,18.42217718]
[1731662770372,0.456577,213.48,213.43,18.42217718]
[1731662770597,0.456577,213.48,213.41,18.42217718]
[1731662771196,0.456577,213.48,213.43,18.42217718]
[1731662771415,0.456577,213.48,213.45,4.6849]
[1731662771899,0.456577,213.48,213.43,34.82067718]
[1731662772574,0.456577,213.48,213.46,18.42217718]
[1731662772793,0.456577,213.48,213.44,18.42217718]
[1731662772990,0.456577,213.48,213.43,16.3985]
[1731662772991,18.42217718,213.47,213.43,16.3985]
[1731662773206,18.42217718,213.46,213.38,30.13817718]
[1731662773498,18.42217718,213.46,213.39,18.42217718]
[1731662773673,18.42217718,213.47,213.4,18.42217718]
[1731662773870,18.87875418,213.48,213.4,18.42217718]
[1731662774093,18.42217718,213.46,213.39,18.42217718]
[1731662774476,18.42217718,213.46,213.38,16.4024]
[1731662774477,18.42217718,213.46,213.38,34.82457718]
[1731662774683,18.42217718,213.45,213.38,34.82457718]
[1731662774904,18.42217718,213.44,213.38,16.4024]
[1731662775084,18.42217718,213.43,213.38,16.4024]
[1731662775288,5.140977,213.48,213.32,18.42217718]
[1731662775289,18.42217718,213.4,213.32,18.42217718]
[1731662775489,18.42217718,213.4,213.31,16.5507]
[1731662775490,18.42217718,213.38,213.31,4.6879]
[1731662775704,18.42217718,213.35,213.28,30.14357718]
[1731662775884,18.42217718,213.34,213.28,11.7214]
[1731662776079,4.7861,213.4,213.28,30.14357718]
[1731662776280,21.0343,213.42,213.28,11.7214]
[1731662776481,23.776884,213.41,213.28,11.7214]
[1731662776705,0.22549,213.4,213.28,11.7214]
[1731662777492,18.42217718,213.36,213.29,18.42217718]
[1731662777995,18.42217718,213.37,213.29,18.42217718]
[1731662778296,18.42217718,213.35,213.28,34.83217718]
[1731662778774,18.42217718,213.34,213.28,16.41]